[Event "Late-Titled-Tuesday-Blitz-September-26-2023"]
[Site "Chess.com"]
[Date "2023.09.26"]
[Round "4"]
[White "elcala"]
[Black "szachmistrz2500"]
[Result "0-1"]
[WhiteElo "1721"]
[BlackElo "2441"]
[TimeControl "180+1"]
[EndTime "14:36:47 PDT"]
[Termination "szachmistrz2500 won by resignation"]

1. d4 {[%clk 0:03:00.9]} 1... c5 {[%clk 0:02:59.1]} 2. dxc5 {[%clk 0:02:56.4]}
2... e6 {[%clk 0:02:58.5]} 3. Nf3 {[%clk 0:02:54.2]} 3... Nf6 {[%clk 0:02:55.5]}
4. Bf4 {[%clk 0:02:51]} 4... Na6 {[%clk 0:02:52.3]} 5. Nc3 {[%clk 0:02:49.3]}
5... Nxc5 {[%clk 0:02:50.8]} 6. e3 {[%clk 0:02:47.9]} 6... d5 {[%clk 0:02:50.8]}
7. Nb5 {[%clk 0:02:41.5]} 7... Na6 {[%clk 0:02:39.9]} 8. Be2 {[%clk 0:02:39.5]}
8... Be7 {[%clk 0:02:36.3]} 9. O-O {[%clk 0:02:38]} 9... O-O {[%clk 0:02:36.4]}
10. c4 {[%clk 0:02:33.3]} 10... Bd7 {[%clk 0:02:33.6]} 11. cxd5 {[%clk
0:02:29.4]} 11... Nxd5 {[%clk 0:02:33.2]} 12. Bg3 {[%clk 0:02:22.8]} 12... Qb6
{[%clk 0:02:33]} 13. a4 {[%clk 0:02:11.6]} 13... Rfd8 {[%clk 0:02:31.9]} 14. a5
{[%clk 0:01:58.3]} 14... Qc5 {[%clk 0:02:31.6]} 15. Nbd4 {[%clk 0:01:52.2]}
15... Rac8 {[%clk 0:02:23.7]} 16. Bxa6 {[%clk 0:01:48.5]} 16... bxa6 {[%clk
0:02:21.5]} 17. Ne5 {[%clk 0:01:46.8]} 17... Be8 {[%clk 0:02:17.8]} 18. Nd3
{[%clk 0:01:34]} 18... Qc4 {[%clk 0:02:06.9]} 19. Rc1 {[%clk 0:01:18.8]} 19...
Qa4 {[%clk 0:02:01.4]} 20. Qxa4 {[%clk 0:01:14.7]} 20... Bxa4 {[%clk 0:02:00.6]}
21. Rxc8 {[%clk 0:01:03.6]} 21... Rxc8 {[%clk 0:02:00]} 22. Rc1 {[%clk
0:00:58.2]} 22... Rxc1+ {[%clk 0:01:57.7]} 23. Nxc1 {[%clk 0:00:58.5]} 23... Bd8
{[%clk 0:01:57.4]} 24. Ncb3 {[%clk 0:00:48.3]} 24... Nb4 {[%clk 0:01:52.8]} 25.
Bd6 {[%clk 0:00:39.6]} 25... Nd3 {[%clk 0:01:48.9]} 26. Ba3 {[%clk 0:00:32.3]}
26... e5 {[%clk 0:01:44.3]} 27. Nc5 {[%clk 0:00:16.9]} 27... Nxc5 {[%clk
0:01:43.4]} 28. Bxc5 {[%clk 0:00:17.1]} 28... exd4 {[%clk 0:01:43.4]} 29. Bxd4
{[%clk 0:00:14.4]} 29... Bxa5 {[%clk 0:01:42.6]} 30. Bxa7 {[%clk 0:00:14.5]}
30... Bb3 {[%clk 0:01:39.3]} 31. Bc5 {[%clk 0:00:14]} 31... Bd8 {[%clk
0:01:37.1]} 32. Kf1 {[%clk 0:00:11.9]} 32... f5 {[%clk 0:01:37.2]} 33. Ke2
{[%clk 0:00:11.8]} 33... Kf7 {[%clk 0:01:37.2]} 34. Kd3 {[%clk 0:00:11.5]} 34...
Bf6 {[%clk 0:01:37.4]} 35. Bb4 {[%clk 0:00:09]} 35... Bxb2 {[%clk 0:01:34.9]}
36. Bc3 {[%clk 0:00:07.4]} 36... Bxc3 {[%clk 0:01:34.3]} 37. Kxc3 {[%clk
0:00:08.3]} 37... Bd5 {[%clk 0:01:34.7]} 0-1

[Event "Late-Titled-Tuesday-Blitz-September-26-2023"]
[Site "Chess.com"]
[Date "2023.09.26"]
[Round "4"]
[White "BlueWizzard"]
[Black "MagnusCarlsen"]
[Result "0-1"]
[WhiteElo "2887"]
[BlackElo "3283"]
[TimeControl "180+1"]
[EndTime "14:36:49 PDT"]
[Termination "MagnusCarlsen won by resignation"]

1. e4 {[%clk 0:03:00.9]} 1... c5 {[%clk 0:02:27.8]} 2. Be2 {[%clk 0:02:48]} 2...
d5 {[%clk 0:02:25.5]} 3. exd5 {[%clk 0:02:39.8]} 3... Nf6 {[%clk 0:02:25]} 4. c4
{[%clk 0:02:35.7]} 4... e6 {[%clk 0:02:24.6]} 5. d4 {[%clk 0:02:36.4]} 5... exd5
{[%clk 0:02:23.7]} 6. Nf3 {[%clk 0:02:35.4]} 6... cxd4 {[%clk 0:02:22.7]} 7. O-O
{[%clk 0:02:34]} 7... Bc5 {[%clk 0:02:18.1]} 8. Nxd4 {[%clk 0:02:32.1]} 8... O-O
{[%clk 0:02:05]} 9. Nb3 {[%clk 0:02:28.5]} 9... Bb6 {[%clk 0:02:04.8]} 10. Bg5
{[%clk 0:02:24.7]} 10... dxc4 {[%clk 0:02:02.6]} 11. N3d2 {[%clk 0:02:14.1]}
11... h6 {[%clk 0:01:59.1]} 12. Bh4 {[%clk 0:02:11.1]} 12... Qd4 {[%clk
0:01:58.2]} 13. Bxf6 {[%clk 0:02:09]} 13... Qxf6 {[%clk 0:01:59.1]} 14. Nc3
{[%clk 0:02:07.7]} 14... Rd8 {[%clk 0:01:57.6]} 15. Qe1 {[%clk 0:02:05.5]} 15...
Nc6 {[%clk 0:01:56.4]} 16. Nxc4 {[%clk 0:02:03.9]} 16... Bd4 {[%clk 0:01:56]}
17. Nb5 {[%clk 0:01:58.4]} 17... Bf5 {[%clk 0:01:55.8]} 18. Ncd6 {[%clk
0:01:54.5]} 18... Rxd6 {[%clk 0:01:54.7]} 19. Nxd6 {[%clk 0:01:54.7]} 19... Qxd6
{[%clk 0:01:55.6]} 20. Rd1 {[%clk 0:01:54.1]} 20... Qf6 {[%clk 0:01:54.3]} 21.
Bf3 {[%clk 0:01:51.4]} 21... Rd8 {[%clk 0:01:48.1]} 22. b4 {[%clk 0:01:48.7]}
22... Ne5 {[%clk 0:01:44.6]} 23. Be2 {[%clk 0:01:42.3]} 23... Ng6 {[%clk
0:01:40]} 24. Bd3 {[%clk 0:01:41]} 24... Nf4 {[%clk 0:01:24.5]} 25. Bxf5 {[%clk
0:01:28]} 25... Qxf5 {[%clk 0:01:25.4]} 26. Qe7 {[%clk 0:01:28.1]} 26... Rd5
{[%clk 0:01:01.7]} 27. Rde1 {[%clk 0:01:17.2]} 27... Nd3 {[%clk 0:00:56.9]} 28.
Re2 {[%clk 0:01:12.4]} 28... Nxf2 {[%clk 0:00:56.3]} 29. Rfe1 {[%clk 0:00:48.1]}
29... Kh7 {[%clk 0:00:44.7]} 30. Qxb7 {[%clk 0:00:38.7]} 30... Ne4+ {[%clk
0:00:42.9]} 0-1

[Event "Late-Titled-Tuesday-Blitz-September-26-2023"]
[Site "Chess.com"]
[Date "2023.09.26"]
[Round "4"]
[White "aranibos"]
[Black "cukus"]
[Result "0-1"]
[WhiteElo "2284"]
[BlackElo "2376"]
[TimeControl "180+1"]
[EndTime "14:36:50 PDT"]
[Termination "cukus won by resignation"]

1. d4 {[%clk 0:03:00.9]} 1... d5 {[%clk 0:02:54.3]} 2. Nf3 {[%clk 0:03:00]} 2...
Nf6 {[%clk 0:02:52.9]} 3. Bg5 {[%clk 0:02:59.9]} 3... e6 {[%clk 0:02:50.4]} 4.
Nbd2 {[%clk 0:02:58.9]} 4... h6 {[%clk 0:02:44.6]} 5. Bxf6 {[%clk 0:02:56]} 5...
Qxf6 {[%clk 0:02:44.6]} 6. e4 {[%clk 0:02:56.5]} 6... g6 {[%clk 0:02:41.6]} 7.
e5 {[%clk 0:02:56.2]} 7... Qe7 {[%clk 0:02:31]} 8. Bd3 {[%clk 0:02:53.9]} 8...
Bg7 {[%clk 0:02:30.8]} 9. c4 {[%clk 0:02:49]} 9... dxc4 {[%clk 0:02:29.4]} 10.
Nxc4 {[%clk 0:02:44.4]} 10... O-O {[%clk 0:02:27]} 11. O-O {[%clk 0:02:44.2]}
11... Rd8 {[%clk 0:02:20.5]} 12. Qe2 {[%clk 0:02:43]} 12... Nc6 {[%clk
0:02:19.6]} 13. Qe4 {[%clk 0:02:35.4]} 13... Nb4 {[%clk 0:02:17.4]} 14. Bb1
{[%clk 0:02:24.5]} 14... Bd7 {[%clk 0:02:15]} 15. a3 {[%clk 0:02:20.3]} 15...
Bc6 {[%clk 0:02:14.1]} 16. Qe2 {[%clk 0:02:15.5]} 16... Nd5 {[%clk 0:02:12.6]}
17. Na5 {[%clk 0:01:58.9]} 17... Nf4 {[%clk 0:01:49.1]} 18. Qe3 {[%clk 0:01:58]}
18... Bxf3 {[%clk 0:01:46.1]} 19. Qxf4 {[%clk 0:01:40.4]} 19... Bd5 {[%clk
0:01:40.4]} 20. Ba2 {[%clk 0:01:37.3]} 20... b6 {[%clk 0:01:37.9]} 21. Bxd5
{[%clk 0:01:31.5]} 21... Rxd5 {[%clk 0:01:37.1]} 22. Nb3 {[%clk 0:01:31.9]}
22... a5 {[%clk 0:01:34.5]} 23. Nd2 {[%clk 0:01:26]} 23... Rad8 {[%clk
0:01:27.9]} 24. Nf3 {[%clk 0:01:25.8]} 24... c5 {[%clk 0:01:20.7]} 25. dxc5
{[%clk 0:01:25.3]} 25... Qxc5 {[%clk 0:01:20]} 26. Rac1 {[%clk 0:01:24.7]} 26...
Qb5 {[%clk 0:01:17.9]} 27. Rfe1 {[%clk 0:01:13]} 27... Qxb2 {[%clk 0:01:09]} 28.
a4 {[%clk 0:00:57.3]} 28... Qb4 {[%clk 0:00:56.9]} 29. Qxb4 {[%clk 0:00:54.4]}
29... axb4 {[%clk 0:00:56.7]} 30. Rb1 {[%clk 0:00:54.5]} 30... Bf8 {[%clk
0:00:55]} 31. h4 {[%clk 0:00:53.5]} 31... Bc5 {[%clk 0:00:52.7]} 32. Re2 {[%clk
0:00:52.6]} 32... Rd3 {[%clk 0:00:51.8]} 33. h5 {[%clk 0:00:48]} 33... g5 {[%clk
0:00:51.1]} 34. g4 {[%clk 0:00:47.3]} 34... Rxf3 {[%clk 0:00:50.3]} 0-1

[Event "Late-Titled-Tuesday-Blitz-September-26-2023"]
[Site "Chess.com"]
[Date "2023.09.26"]
[Round "4"]
[White "DanielNaroditsky"]
[Black "MikaelyanArman"]
[Result "1-0"]
[WhiteElo "3135"]
[BlackElo "2837"]
[TimeControl "180+1"]
[EndTime "14:36:52 PDT"]
[Termination "DanielNaroditsky won by resignation"]

1. e4 {[%clk 0:03:00.9]} 1... e5 {[%clk 0:02:59.2]} 2. Nf3 {[%clk 0:02:59.1]}
2... Nc6 {[%clk 0:02:59.6]} 3. Nc3 {[%clk 0:02:59.5]} 3... Nf6 {[%clk
0:02:59.4]} 4. g3 {[%clk 0:02:59]} 4... g6 {[%clk 0:02:55.1]} 5. Bg2 {[%clk
0:02:58.9]} 5... Bg7 {[%clk 0:02:55.8]} 6. O-O {[%clk 0:02:59.5]} 6... O-O
{[%clk 0:02:56.5]} 7. d3 {[%clk 0:02:59.8]} 7... d6 {[%clk 0:02:54.7]} 8. h3
{[%clk 0:02:58]} 8... Nh5 {[%clk 0:02:44.7]} 9. Be3 {[%clk 0:02:55.8]} 9... h6
{[%clk 0:02:35.9]} 10. d4 {[%clk 0:02:47.5]} 10... exd4 {[%clk 0:02:30.5]} 11.
Nxd4 {[%clk 0:02:48.4]} 11... Ne5 {[%clk 0:02:30.6]} 12. Qe2 {[%clk 0:02:42.3]}
12... c5 {[%clk 0:02:13.1]} 13. Nb3 {[%clk 0:02:40.6]} 13... Be6 {[%clk
0:02:09.7]} 14. Nd2 {[%clk 0:02:40.9]} 14... Nc6 {[%clk 0:02:08.2]} 15. g4
{[%clk 0:02:35]} 15... Nd4 {[%clk 0:02:00.9]} 16. Qd1 {[%clk 0:02:35.3]} 16...
Nf6 {[%clk 0:01:59.4]} 17. Nb3 {[%clk 0:02:21.5]} 17... Nc6 {[%clk 0:01:44.1]}
18. Qd2 {[%clk 0:02:18.3]} 18... a5 {[%clk 0:01:29]} 19. Rad1 {[%clk 0:02:11.4]}
19... a4 {[%clk 0:01:28.5]} 20. Nc1 {[%clk 0:02:11.5]} 20... Ne5 {[%clk
0:01:25.3]} 21. b3 {[%clk 0:02:10.6]} 21... axb3 {[%clk 0:01:21.4]} 22. axb3
{[%clk 0:02:07]} 22... Qa5 {[%clk 0:01:18.8]} 23. N1e2 {[%clk 0:02:02]} 23...
Rad8 {[%clk 0:00:53.7]} 24. Bxh6 {[%clk 0:02:00.9]} 24... b5 {[%clk 0:00:37]}
25. Bxg7 {[%clk 0:01:58]} 25... Kxg7 {[%clk 0:00:37.9]} 26. f4 {[%clk
0:01:57.5]} 26... Nc6 {[%clk 0:00:38.3]} 27. f5 {[%clk 0:01:31.8]} 27... Bc8
{[%clk 0:00:38.2]} 28. Qg5 {[%clk 0:01:25.2]} 28... Ne5 {[%clk 0:00:34.5]} 29.
Ra1 {[%clk 0:01:13.5]} 29... Qb4 {[%clk 0:00:28.6]} 30. Ra7 {[%clk 0:01:06.9]}
30... c4 {[%clk 0:00:20.5]} 31. Qxf6+ {[%clk 0:01:07]} 31... Kxf6 {[%clk
0:00:10.8]} 32. Nd5+ {[%clk 0:01:07.4]} 1-0

[Event "Late-Titled-Tuesday-Blitz-September-26-2023"]
[Site "Chess.com"]
[Date "2023.09.26"]
[Round "4"]
[White "Colombiano07"]
[Black "dadice10"]
[Result "1-0"]
[WhiteElo "2391"]
[BlackElo "2231"]
[TimeControl "180+1"]
[EndTime "14:36:54 PDT"]
[Termination "Colombiano07 won by resignation"]

1. d4 {[%clk 0:02:56.1]} 1... d5 {[%clk 0:02:59.4]} 2. Nf3 {[%clk 0:02:55.7]}
2... Nf6 {[%clk 0:02:57.2]} 3. c4 {[%clk 0:02:56.3]} 3... dxc4 {[%clk
0:02:56.8]} 4. e3 {[%clk 0:02:56.2]} 4... Bg4 {[%clk 0:02:55.6]} 5. Bxc4 {[%clk
0:02:56.4]} 5... e6 {[%clk 0:02:55.8]} 6. Nbd2 {[%clk 0:02:55.9]} 6... Bd6
{[%clk 0:02:52.5]} 7. O-O {[%clk 0:02:56.1]} 7... O-O {[%clk 0:02:50.5]} 8. Qc2
{[%clk 0:02:54.7]} 8... Nc6 {[%clk 0:02:48.8]} 9. a3 {[%clk 0:02:54.4]} 9... e5
{[%clk 0:02:48]} 10. d5 {[%clk 0:02:49.8]} 10... Ne7 {[%clk 0:02:45.3]} 11. h3
{[%clk 0:02:40.4]} 11... Bh5 {[%clk 0:02:43.1]} 12. e4 {[%clk 0:02:39.1]} 12...
Bg6 {[%clk 0:02:24.8]} 13. Re1 {[%clk 0:02:37.3]} 13... c6 {[%clk 0:02:23.2]}
14. dxc6 {[%clk 0:02:33.5]} 14... Nxc6 {[%clk 0:02:23.4]} 15. Qa4 {[%clk
0:02:20.7]} 15... a6 {[%clk 0:02:21.3]} 16. Bd5 {[%clk 0:02:18.5]} 16... Rc8
{[%clk 0:02:03.9]} 17. Nf1 {[%clk 0:02:00.2]} 17... Nxd5 {[%clk 0:01:46.6]} 18.
exd5 {[%clk 0:02:01.1]} 18... Ne7 {[%clk 0:01:45.4]} 19. Nxe5 {[%clk 0:01:59.6]}
19... Nxd5 {[%clk 0:01:43]} 20. Nxg6 {[%clk 0:01:58]} 20... hxg6 {[%clk
0:01:43.3]} 21. Be3 {[%clk 0:01:51.7]} 21... Nxe3 {[%clk 0:01:41.7]} 22. Nxe3
{[%clk 0:01:52.6]} 22... Qf6 {[%clk 0:01:31.3]} 23. Rad1 {[%clk 0:01:48.5]}
23... Rfd8 {[%clk 0:01:29.3]} 24. b4 {[%clk 0:01:46.7]} 24... Qf4 {[%clk
0:01:08.4]} 25. g3 {[%clk 0:01:42.9]} 25... Qf3 {[%clk 0:01:08]} 26. Nf1 {[%clk
0:01:28.7]} 26... Kh7 {[%clk 0:00:47.8]} 27. Re3 {[%clk 0:01:19.9]} 27... Qc6
{[%clk 0:00:42.5]} 28. Qxc6 {[%clk 0:01:17.2]} 28... bxc6 {[%clk 0:00:39.9]} 29.
Red3 {[%clk 0:01:18.1]} 29... Be7 {[%clk 0:00:38.8]} 30. Kg2 {[%clk 0:01:16.4]}
30... Rxd3 {[%clk 0:00:37.5]} 31. Rxd3 {[%clk 0:01:17.3]} 31... Kg8 {[%clk
0:00:35]} 32. Rd7 {[%clk 0:01:16.8]} 32... Kf8 {[%clk 0:00:34.6]} 33. Ra7 {[%clk
0:01:15.1]} 33... c5 {[%clk 0:00:22.8]} 34. bxc5 {[%clk 0:01:16]} 34... Bxc5
{[%clk 0:00:21.7]} 35. Rxa6 {[%clk 0:01:16.3]} 35... Rd8 {[%clk 0:00:21.2]} 36.
a4 {[%clk 0:01:14.5]} 36... Rd2 {[%clk 0:00:18]} 37. Nxd2 {[%clk 0:01:13.6]} 1-0

[Event "Late-Titled-Tuesday-Blitz-September-26-2023"]
[Site "Chess.com"]
[Date "2023.09.26"]
[Round "4"]
[White "PassedPawnMustPushed"]
[Black "maurovargas01"]
[Result "1-0"]
[WhiteElo "2142"]
[BlackElo "1907"]
[TimeControl "180+1"]
[EndTime "14:36:58 PDT"]
[Termination "PassedPawnMustPushed won by checkmate"]

1. e4 {[%clk 0:03:00.9]} 1... d5 {[%clk 0:02:59]} 2. exd5 {[%clk 0:03:00.9]}
2... Qxd5 {[%clk 0:02:59.9]} 3. Nc3 {[%clk 0:03:01.4]} 3... Qa5 {[%clk
0:03:00.4]} 4. d4 {[%clk 0:03:01.9]} 4... c6 {[%clk 0:03:00.7]} 5. Nf3 {[%clk
0:03:02.3]} 5... Nf6 {[%clk 0:02:58]} 6. Be2 {[%clk 0:02:59.4]} 6... Bg4 {[%clk
0:02:56.8]} 7. O-O {[%clk 0:02:59.2]} 7... e6 {[%clk 0:02:55]} 8. h3 {[%clk
0:02:59.4]} 8... h5 {[%clk 0:02:51.8]} 9. Bf4 {[%clk 0:02:51.9]} 9... Bf5 {[%clk
0:02:46.1]} 10. Ne5 {[%clk 0:02:45.3]} 10... Nbd7 {[%clk 0:02:36.7]} 11. Nc4
{[%clk 0:02:45.4]} 11... Qd8 {[%clk 0:02:32.5]} 12. a4 {[%clk 0:02:43.7]} 12...
Bb4 {[%clk 0:02:21.7]} 13. Nd6+ {[%clk 0:02:42.7]} 13... Bxd6 {[%clk 0:02:18.2]}
14. Bxd6 {[%clk 0:02:43.6]} 14... Nb6 {[%clk 0:02:17.5]} 15. Ba3 {[%clk
0:02:38.1]} 15... Qd7 {[%clk 0:02:08.4]} 16. a5 {[%clk 0:02:37.1]} 16... Nbd5
{[%clk 0:02:04.9]} 17. Na4 {[%clk 0:02:35.4]} 17... Ne7 {[%clk 0:02:01.1]} 18.
Nc5 {[%clk 0:02:00.3]} 18... Qc7 {[%clk 0:01:59.5]} 19. a6 {[%clk 0:02:00.8]}
19... b6 {[%clk 0:01:56.6]} 20. Nb7 {[%clk 0:02:00.7]} 20... Ne4 {[%clk
0:01:01.1]} 21. Bf3 {[%clk 0:01:49.3]} 21... Ng5 {[%clk 0:00:55.7]} 22. Nd6+
{[%clk 0:01:43.9]} 22... Kf8 {[%clk 0:00:48.9]} 23. Nxf5 {[%clk 0:01:36.2]}
23... exf5 {[%clk 0:00:45]} 24. Re1 {[%clk 0:01:26]} 24... Re8 {[%clk
0:00:43.5]} 25. d5 {[%clk 0:01:25.6]} 25... cxd5 {[%clk 0:00:39.8]} 26. Qxd5
{[%clk 0:01:19.2]} 26... Nxf3+ {[%clk 0:00:08.5]} 27. Qxf3 {[%clk 0:01:20.1]}
27... Qxc2 {[%clk 0:00:07.1]} 28. Rxe7 {[%clk 0:01:13.9]} 28... Rxe7 {[%clk
0:00:04.4]} 29. Qa8+ {[%clk 0:01:13.8]} 29... Qc8 {[%clk 0:00:01.8]} 30. Qxc8#
{[%clk 0:01:13.9]} 1-0

[Event "Late-Titled-Tuesday-Blitz-September-26-2023"]
[Site "Chess.com"]
[Date "2023.09.26"]
[Round "4"]
[White "Good_Knight_Kiss"]
[Black "HamedWafa4"]
[Result "0-1"]
[WhiteElo "2428"]
[BlackElo "2654"]
[TimeControl "180+1"]
[EndTime "14:36:59 PDT"]
[Termination "HamedWafa4 won on time"]

1. e4 {[%clk 0:03:00.9]} 1... e5 {[%clk 0:02:59.6]} 2. Nf3 {[%clk 0:02:59.9]}
2... Nc6 {[%clk 0:02:59.9]} 3. Bb5 {[%clk 0:02:59.8]} 3... a6 {[%clk 0:02:59.5]}
4. Ba4 {[%clk 0:03:00.2]} 4... Nf6 {[%clk 0:02:59.2]} 5. O-O {[%clk 0:02:59.6]}
5... Be7 {[%clk 0:02:59.6]} 6. Re1 {[%clk 0:02:59.7]} 6... b5 {[%clk 0:02:59.5]}
7. Bb3 {[%clk 0:03:00]} 7... O-O {[%clk 0:02:59.9]} 8. a4 {[%clk 0:02:59.7]}
8... d5 {[%clk 0:02:59.7]} 9. axb5 {[%clk 0:02:55.9]} 9... dxe4 {[%clk
0:02:59.4]} 10. bxc6 {[%clk 0:02:54.9]} 10... exf3 {[%clk 0:02:59.6]} 11. Qxf3
{[%clk 0:02:55.7]} 11... e4 {[%clk 0:02:59.8]} 12. Qc3 {[%clk 0:02:42.3]} 12...
Rb8 {[%clk 0:02:59.1]} 13. Ra4 {[%clk 0:02:29.7]} 13... Bd6 {[%clk 0:02:34.2]}
14. h3 {[%clk 0:02:21.4]} 14... Re8 {[%clk 0:02:29.9]} 15. d4 {[%clk 0:02:11.7]}
15... exd3 {[%clk 0:02:21.8]} 16. Bg5 {[%clk 0:01:48.8]} 16... Bf5 {[%clk
0:02:01.6]} 17. Rxe8+ {[%clk 0:01:19.1]} 17... Qxe8 {[%clk 0:02:00.2]} 18. Bxf6
{[%clk 0:01:19.1]} 18... dxc2 {[%clk 0:01:31.9]} 19. Bxc2 {[%clk 0:01:01.8]}
19... Bxc2 {[%clk 0:01:30.6]} 20. Rg4 {[%clk 0:01:01.5]} 20... Bg6 {[%clk
0:01:17.7]} 21. Bxg7 {[%clk 0:00:43.5]} 21... Rb3 {[%clk 0:01:11.6]} 22. Qc1
{[%clk 0:00:06]} 22... Kxg7 {[%clk 0:01:07.8]} 23. Nd2 {[%clk 0:00:06.1]} 23...
Rd3 {[%clk 0:01:04.4]} 24. Nf3 {[%clk 0:00:02.9]} 24... Qe2 {[%clk 0:01:02.6]}
25. h4 {[%clk 0:00:01.7]} 25... Rd1+ {[%clk 0:01:02.3]} 26. Qxd1 {[%clk
0:00:01.8]} 26... Qxd1+ {[%clk 0:01:03.2]} 0-1

[Event "Late-Titled-Tuesday-Blitz-September-26-2023"]
[Site "Chess.com"]
[Date "2023.09.26"]
[Round "4"]
[White "komogro"]
[Black "ogpin"]
[Result "1-0"]
[WhiteElo "2431"]
[BlackElo "2061"]
[TimeControl "180+1"]
[EndTime "14:37:00 PDT"]
[Termination "komogro won by resignation"]

1. e4 {[%clk 0:03:00]} 1... e5 {[%clk 0:02:57.4]} 2. Nc3 {[%clk 0:02:59.8]} 2...
g6 {[%clk 0:02:56]} 3. g3 {[%clk 0:02:59.9]} 3... Bg7 {[%clk 0:02:56]} 4. Bg2
{[%clk 0:03:00.2]} 4... Ne7 {[%clk 0:02:56.5]} 5. d3 {[%clk 0:03:00.5]} 5... O-O
{[%clk 0:02:54.5]} 6. Be3 {[%clk 0:03:00.7]} 6... c6 {[%clk 0:02:52.4]} 7. Qd2
{[%clk 0:03:00.2]} 7... d5 {[%clk 0:02:51.9]} 8. Bh6 {[%clk 0:03:00.5]} 8... Be6
{[%clk 0:02:46.1]} 9. h4 {[%clk 0:02:58]} 9... Nd7 {[%clk 0:02:42.4]} 10. h5
{[%clk 0:02:56.9]} 10... d4 {[%clk 0:02:33]} 11. Bxg7 {[%clk 0:02:40.7]} 11...
Kxg7 {[%clk 0:02:10.2]} 12. hxg6 {[%clk 0:02:39.7]} 12... fxg6 {[%clk
0:01:53.2]} 13. Qh6+ {[%clk 0:02:30.9]} 13... Kf7 {[%clk 0:01:53.4]} 14. Qxh7+
{[%clk 0:02:30]} 14... Ke8 {[%clk 0:01:53.9]} 15. Nce2 {[%clk 0:02:26.2]} 15...
Qb6 {[%clk 0:01:50.8]} 16. b3 {[%clk 0:02:18.6]} 16... Qb4+ {[%clk 0:01:47.8]}
17. Kf1 {[%clk 0:02:18.3]} 17... Nf6 {[%clk 0:01:46.4]} 18. Qg7 {[%clk
0:02:04.5]} 18... Qd2 {[%clk 0:01:01.6]} 19. Nf3 {[%clk 0:01:53.9]} 19... Qxc2
{[%clk 0:01:00.8]} 20. Nxe5 {[%clk 0:01:53.3]} 20... Ng4 {[%clk 0:00:59.9]} 21.
Rh8 {[%clk 0:01:46.2]} 21... Bg8 {[%clk 0:00:22.3]} 22. Nxg4 {[%clk 0:01:38.6]}
22... Kd7 {[%clk 0:00:22.5]} 23. Qxd4+ {[%clk 0:01:36.3]} 23... Kc7 {[%clk
0:00:22.5]} 24. Rc1 {[%clk 0:01:28.2]} 24... Qxa2 {[%clk 0:00:20.7]} 25. Nf4
{[%clk 0:01:15.1]} 25... Bxb3 {[%clk 0:00:20.4]} 26. Rh7 {[%clk 0:01:12.9]}
26... Rae8 {[%clk 0:00:18.5]} 27. Qe5+ {[%clk 0:01:11.9]} 27... Kb6 {[%clk
0:00:16.1]} 28. Rxe7 {[%clk 0:01:09.8]} 28... Qa3 {[%clk 0:00:13.6]} 29. Qc7+
{[%clk 0:01:09]} 29... Ka6 {[%clk 0:00:12.1]} 30. Qxb7+ {[%clk 0:01:08.7]} 30...
Ka5 {[%clk 0:00:12.4]} 31. Qxa7+ {[%clk 0:01:08.3]} 31... Kb4 {[%clk 0:00:11.5]}
32. Qd4+ {[%clk 0:01:07.4]} 32... Kb5 {[%clk 0:00:10.4]} 33. Rb7+ {[%clk
0:01:07]} 1-0

[Event "Late-Titled-Tuesday-Blitz-September-26-2023"]
[Site "Chess.com"]
[Date "2023.09.26"]
[Round "4"]
[White "FairChess_on_YouTube"]
[Black "vladislavkovalev"]
[Result "1-0"]
[WhiteElo "3098"]
[BlackElo "2876"]
[TimeControl "180+1"]
[EndTime "14:37:04 PDT"]
[Termination "FairChess_on_YouTube won by resignation"]

1. d4 {[%clk 0:03:00.9]} 1... Nf6 {[%clk 0:02:59.6]} 2. c4 {[%clk 0:03:01.4]}
2... e6 {[%clk 0:02:59.6]} 3. Nf3 {[%clk 0:02:59.9]} 3... Bb4+ {[%clk
0:02:56.7]} 4. Bd2 {[%clk 0:02:58.7]} 4... Qe7 {[%clk 0:02:56.8]} 5. g3 {[%clk
0:02:57.8]} 5... b6 {[%clk 0:02:57.4]} 6. Bg2 {[%clk 0:02:57.6]} 6... Bb7 {[%clk
0:02:57.8]} 7. O-O {[%clk 0:02:57.2]} 7... Bxd2 {[%clk 0:02:58.5]} 8. Qxd2
{[%clk 0:02:52.5]} 8... O-O {[%clk 0:02:58.3]} 9. Nc3 {[%clk 0:02:48.6]} 9...
Ne4 {[%clk 0:02:57.8]} 10. Nxe4 {[%clk 0:02:49.2]} 10... Bxe4 {[%clk 0:02:57.9]}
11. Qf4 {[%clk 0:02:49.9]} 11... d5 {[%clk 0:02:41.5]} 12. Rac1 {[%clk
0:02:46.4]} 12... c5 {[%clk 0:02:08.7]} 13. dxc5 {[%clk 0:02:29.6]} 13... bxc5
{[%clk 0:02:09.6]} 14. cxd5 {[%clk 0:02:29.2]} 14... exd5 {[%clk 0:02:09.1]} 15.
Qe3 {[%clk 0:02:28.8]} 15... Qf6 {[%clk 0:01:39.6]} 16. Rxc5 {[%clk 0:02:06.3]}
16... Qxb2 {[%clk 0:01:32.5]} 17. Qd2 {[%clk 0:02:05.7]} 17... Qb6 {[%clk
0:01:08.5]} 18. Rfc1 {[%clk 0:02:05.3]} 18... Nd7 {[%clk 0:01:07.8]} 19. Rc6
{[%clk 0:02:05.3]} 19... Qd8 {[%clk 0:00:57.3]} 20. Nd4 {[%clk 0:01:59.1]} 20...
Nf6 {[%clk 0:00:50.7]} 21. Qf4 {[%clk 0:01:52]} 21... Re8 {[%clk 0:00:43.8]} 22.
Rd6 {[%clk 0:01:43.2]} 22... Qe7 {[%clk 0:00:29.3]} 23. Bxe4 {[%clk 0:01:41.9]}
23... Qxe4 {[%clk 0:00:22.1]} 24. f3 {[%clk 0:01:34.2]} 24... Qxf4 {[%clk
0:00:18.6]} 25. gxf4 {[%clk 0:01:34]} 25... Rab8 {[%clk 0:00:15.4]} 26. Rc7
{[%clk 0:01:29.8]} 26... Rb4 {[%clk 0:00:13.5]} 27. e3 {[%clk 0:01:17]} 27... h6
{[%clk 0:00:09.4]} 28. Nf5 {[%clk 0:01:11.8]} 28... Rb2 {[%clk 0:00:05.2]} 29.
Rxa7 {[%clk 0:01:06.1]} 29... Rc8 {[%clk 0:00:04.8]} 30. Ne7+ {[%clk 0:01:05.5]}
1-0